bitfinex-derivatives/quotes_SOLF0:USTF0_20251026
["timestamp","ask_amount","ask_price","bid_price","bid_amount"]
[1761516655924,2.61,200.13,199.98,2.76]
[1761516656124,6.7198174,200.13,199.98,2.76]
[1761516656329,4.1098174,200.12,199.98,2.76]
[1761516656519,2.61,200.13,199.98,2.76]
[1761516657632,6.7198174,200.18,199.98,2.76]
[1761516657926,4.1098174,200.17,199.98,2.76]
[1761516658225,6.7198174,200.17,199.98,2.76]
[1761516658427,4.1098174,200.16,199.98,2.76]
[1761516658719,2.61,200.17,199.98,2.76]
[1761516658918,2.61,200.17,200.03,2.76]
[1761516659317,6.7198174,200.17,200.03,2.76]
[1761516659630,2.61,200.15,200.03,2.76]
[1761516659926,6.7198174,200.15,200.03,2.76]
[1761516660126,4.1098174,200.14,200.03,2.76]
[1761516660328,2.61,200.13,199.98,8.54454287]
[1761516660526,2.61,200.13,199.98,2.76]
[1761516661828,2.61,200.12,199.98,2.76]
[1761516662028,2.61,200.11,199.98,2.76]
[1761516662328,2.61,200.11,199.93,2.76]
[1761516662528,17.59,200.09,199.86,2.76]
[1761516662724,5.78454287,200.05,199.86,2.76]
[1761516662924,2.61,200.03,199.86,2.76]
[1761516663321,2.61,200.03,199.81,2.77]
[1761516663522,4.1098174,200.03,199.83,5.78454287]
[1761516663827,4.1098174,200.06,199.88,5.78454287]
[1761516664031,2.61,200.07,199.89,2.77]
[1761516665731,2.61,200.02,199.83,2.77]
[1761516666320,14.98,200.01,199.79,2.77]
[1761516666524,2.61,199.97,199.79,2.77]
[1761516667328,2.61,199.97,199.8,2.77]
[1761516669236,2.62,200.03,199.82,2.62]
[1761516670232,2.62,200.03,199.83,2.62]
[1761516670735,61.87523872,200.1,199.88,2.62]
[1761516670736,2.62,200.09,199.88,2.62]
[1761516671433,2.62,200.05,199.83,2.62]
[1761516671629,5.78454287,200.06,199.78,2.62]
[1761516671630,2.62,200.0,199.78,2.62]
[1761516672338,2.62,199.95,199.78,2.62]
[1761516672533,2.62,199.95,199.71,2.62]
[1761516672937,2.62,199.9,199.71,2.62]
[1761516675024,2.62,199.9,199.73,2.62]
[1761516675230,2.62,199.9,199.75,2.62]
[1761516675432,2.62,199.97,199.76,2.62]
[1761516676160,200.06,200.03,199.8,2.62]
[1761516676161,2.62,200.02,199.8,2.62]
[1761516676633,2.62,200.01,199.8,2.62]
[1761516677433,2.62,200.01,199.81,4.5037]
[1761516677631,2.62,200.01,199.82,2.62]
[1761516677830,2.62,200.01,199.85,3.42512683]
[1761516678037,2.62,200.01,199.86,2.62]
[1761516678438,2.62,200.01,199.9,2.62]
[1761516681840,2.62,200.01,199.83,2.62]
[1761516682238,2.62,199.97,199.78,6.04512683]
[1761516682443,2.62,199.97,199.79,2.62]
[1761516682838,2.62,199.95,199.79,2.62]
[1761516683238,3.42512683,200.01,199.79,2.62]
[1761516683440,2.62,200.0,199.84,2.62]
[1761516683946,2.62,200.06,199.91,3.42512683]
[1761516684147,2.62,200.06,199.92,2.62]
[1761516685746,2.62,200.02,199.87,2.62]
[1761516686946,2.62,199.98,199.82,2.62]
[1761516687152,2.62,199.94,199.82,2.62]
[1761516688948,2.62,199.94,199.77,2.62]
[1761516690346,2.62,199.9,199.77,2.62]
[1761516691849,2.62,199.94,199.77,2.62]
[1761516692455,2.62,200.02,199.81,2.62]
[1761516692655,2.62,200.02,199.85,2.62]
[1761516695257,2.62,200.07,199.86,2.62]
[1761516695458,2.62,200.03,199.86,2.62]
[1761516695659,2.62,199.99,199.86,2.62]
[1761516695853,2.62,199.99,199.82,2.62]
[1761516697046,2.62,199.95,199.82,2.62]
[1761516697446,3.42512683,199.96,199.82,2.62]
[1761516697657,2.62,199.99,199.82,2.62]
[1761516699164,2.82,199.95,199.82,2.62]
[1761516702264,2.82,199.95,199.77,2.71]
[1761516702756,2.82,199.91,199.77,2.71]
[1761516705462,2.82,199.87,199.71,2.71]
[1761516705658,2.82,199.87,199.65,5.36851974]
[1761516705865,3.42512683,199.79,199.64,2.71]
[1761516706258,2.82,199.81,199.65,2.71]
[1761516707665,2.82,199.8,199.65,2.71]
[1761516708357,2.82,199.76,199.59,2.71]
[1761516708859,2.82,199.76,199.6,2.71]
[1761516709161,24.21024134,199.87,199.55,201.01167798]
[1761516709162,3.42512683,199.79,199.64,2.71]
[1761516709368,2.82,199.78,199.64,2.71]
[1761516709661,2.82,199.83,199.65,2.71]
[1761516710463,2.82,199.83,199.69,2.71]
[1761516710663,3.42512683,199.86,199.69,2.71]
[1761516710962,2.82,199.89,199.69,2.71]
[1761516711153,2.82,199.89,199.73,2.71]
[1761516711354,5.56218,199.89,199.77,2.71]
[1761516716362,5.56218,199.89,199.78,2.71]
[1761516718969,8.38218,199.89,199.78,2.71]
[1761516720060,2.82,199.88,199.74,2.71]
[1761516720258,2.82,199.87,199.74,2.71]
[1761516721055,5.56218,199.89,199.68,2.71]
[1761516721056,2.82,199.85,199.68,2.71]
[1761516721758,2.82,199.83,199.68,2.71]
[1761516722471,3.42512683,199.8,199.63,2.71]
[1761516722666,2.82,199.79,199.63,2.71]
[1761516723257,2.78,199.85,199.69,2.86]
[1761516724355,2.78,199.85,199.73,2.86]
[1761516724770,2.78,199.82,199.67,6.28512683]
[1761516724961,2.78,199.82,199.68,2.86]
[1761516725363,2.78,199.87,199.72,2.86]
[1761516725663,5.56218,199.89,199.75,3.42512683]
[1761516725861,5.56218,199.89,199.76,7.3648]
[1761516726170,5.56218,199.89,199.69,4.5395981]
[1761516726171,5.56218,199.89,199.78,2.86]
[1761516728183,8.34218,199.89,199.78,2.86]
[1761516728470,5.56218,199.89,199.78,2.86]
[1761516728667,5.56218,199.89,199.73,3.42512683]
[1761516728668,5.56218,199.89,199.82,2.76]
[1761516730773,2.63,199.88,199.72,2.76]
[1761516730965,2.63,199.88,199.74,2.76]
[1761516736973,5.56218,199.89,199.79,2.76]
[1761516737570,8.19218,199.89,199.75,2.76]
[1761516737779,2.63,199.88,199.75,2.76]
[1761516738070,5.56218,199.89,199.79,2.76]
[1761516738466,5.56218,199.89,199.83,2.76]
[1761516739278,5.56218,199.89,199.83,7.2632]
[1761516739876,5.56218,199.89,199.83,2.76]
[1761516741072,5.56218,199.89,199.78,4.5043]
[1761516741277,2.63,199.88,199.71,4.54434756]
[1761516741476,2.63,199.88,199.71,2.76]
[1761516742173,2.63,199.87,199.71,2.76]
[1761516742979,2.63,199.86,199.71,2.76]
[1761516744772,6.17083872,199.85,199.65,2.76]
[1761516744974,5.79498005,199.82,199.65,2.76]
[1761516745180,2.63,199.81,199.65,2.76]
[1761516745377,2.63,199.81,199.67,2.76]
[1761516745778,2.63,199.81,199.68,4.5067]
[1761516746075,2.63,199.81,199.67,2.76]
[1761516746379,2.63,199.81,199.67,7.2669]
[1761516746579,2.63,199.81,199.68,2.76]
[1761516747482,5.79498005,199.87,199.7,2.76]
[1761516747483,2.63,199.86,199.7,2.76]
[1761516747981,2.63,199.86,199.72,4.5057]
[1761516749669,2.63,199.86,199.72,7.2657]
[1761516750280,2.63,199.86,199.75,2.76]
[1761516753173,5.56218,199.89,199.76,2.76]
[1761516753679,5.56218,199.89,199.77,2.76]
[1761516753980,2.63,199.88,199.77,2.76]
[1761516754374,5.56218,199.89,199.77,2.76]
[1761516754870,5.56218,199.89,199.82,2.76]
[1761516755681,5.56218,199.89,199.83,7.2633]
[1761516757276,5.56218,199.89,199.83,2.76]
[1761516757878,5.56218,199.89,199.8,4.5038]
[1761516759177,5.56218,199.89,199.78,2.76]
[1761516760175,5.56218,199.89,199.81,4.5036]
[1761516761284,2.8,199.88,199.78,7.2643]
[1761516761490,2.8,199.88,199.73,2.62]
[1761516761883,2.8,199.88,199.69,5.79498005]
[1761516762084,2.8,199.86,199.68,2.62]
[1761516762286,6.17083872,199.86,199.68,2.62]
[1761516762483,2.8,199.84,199.68,2.62]
[1761516762976,2.8,199.82,199.63,2.62]
[1761516763489,2.8,199.82,199.68,4.5066]
[1761516764187,2.8,199.82,199.63,2.62]
[1761516764486,2.8,199.82,199.56,5.79498005]
[1761516764487,2.8,199.8,199.56,5.79498005]
[1761516764682,2.8,199.77,199.57,2.62]
[1761516765391,2.8,199.77,199.63,2.62]
[1761516766687,2.8,199.77,199.55,2.62]
[1761516767292,2.8,199.77,199.59,2.62]
[1761516768294,2.8,199.77,199.63,4.5078]
[1761516768994,2.8,199.77,199.59,2.62]
[1761516769297,2.8,199.77,199.54,6.66669078]
[1761516769298,2.8,199.77,199.6,2.62]
[1761516769706,2.8,199.77,199.66,4.507]
[1761516771404,2.8,199.77,199.63,7.1277]
[1761516771607,2.8,199.77,199.64,2.62]
[1761516772003,2.8,199.77,199.67,4.5069]
[1761516772601,2.8,199.77,199.64,7.1274]
[1761516772801,2.8,199.77,199.64,2.62]
[1761516774394,2.8,199.77,199.65,4.5073]
[1761516774994,2.8,199.77,199.64,2.62]
[1761516776110,2.8,199.77,199.64,7.1275]
[1761516778504,2.8,199.81,199.67,2.62]
[1761516779608,2.8,199.81,199.7,4.5061]
[1761516780109,2.8,199.81,199.67,2.62]
[1761516780698,2.8,199.81,199.67,7.1266]
[1761516781001,2.8,199.81,199.67,4.5066]
[1761516781205,17.78,199.8,199.63,4.5077]
[1761516781403,17.78,199.8,199.6,2.62]
[1761516781404,2.8,199.79,199.6,2.62]
[1761516781812,2.8,199.79,199.65,7.1274]
[1761516782702,2.8,199.79,199.66,2.62]
[1761516783408,6.17083872,199.85,199.66,2.62]
[1761516783609,2.81,199.85,199.71,2.73]
[1761516784398,5.56218,199.89,199.76,2.73]
[1761516785013,5.56218,199.89,199.8,7.2339]
[1761516785203,5.56218,199.89,199.8,2.73]
[1761516785204,8.37218,199.89,199.8,2.73]
[1761516785403,8.37218,199.89,199.71,5.79498005]
[1761516785710,2.81,199.88,199.75,7.235]
[1761516785913,2.81,199.88,199.76,2.73]
[1761516786114,2.81,199.88,199.77,7.2346]
[1761516787907,2.81,199.88,199.77,4.5046]
[1761516788112,2.81,199.88,199.78,2.73]
[1761516788307,5.56218,199.89,199.8,2.73]
[1761516788705,5.56218,199.89,199.82,4.5034]
[1761516788908,5.56218,199.89,199.83,2.7]
[1761516790015,5.56218,199.89,199.85,2.7]
[1761516790716,8.24218,199.89,199.79,2.7]
[1761516791314,2.68,199.88,199.77,4.5045]
[1761516792516,5.56218,199.89,199.79,4.5042]
[1761516792709,5.56218,199.89,199.8,2.7]
[1761516792911,8.24218,199.89,199.75,2.7]
[1761516793516,8.24218,199.89,199.79,2.7]
[1761516794412,2.68,199.88,199.79,2.7]
[1761516795308,2.68,199.88,199.79,7.2042]
[1761516795511,2.68,199.88,199.74,2.7]
[1761516796912,2.68,199.88,199.76,2.7]
[1761516797320,5.56218,199.89,199.84,7.2031]
[1761516797517,5.56218,199.89,199.85,2.7]
[1761516797718,5.56218,199.89,199.75,2.7]
[1761516798114,5.56218,199.89,199.83,4.5033]
[1761516798524,5.56218,199.89,199.81,2.7]
[1761516798823,5.56218,199.89,199.85,4.5028]
[1761516799025,5.56218,199.89,199.85,7.2028]
[1761516799419,5.56218,199.89,199.85,4.5028]
[1761516799622,5.56218,199.89,199.74,5.79498005]
[1761516799623,2.68,199.88,199.82,4.5033]
[1761516800126,2.68,199.88,199.74,2.7]
[1761516801017,5.56218,199.89,199.83,4.5033]
[1761516801433,5.56218,199.89,199.8,2.7]
[1761516802128,5.56218,199.89,199.82,4.5034]
[1761516804729,8.24218,199.89,199.8,2.7]
[1761516805030,2.68,199.88,199.79,4.5041]
[1761516805324,2.68,199.88,199.76,4.5047]
[1761516806424,2.68,199.88,199.7,2.7]
[1761516806827,2.68,199.84,199.65,2.7]
[1761516807418,2.68,199.84,199.7,4.5063]
[1761516807618,2.68,199.8,199.65,2.7]
[1761516808024,2.68,199.8,199.69,4.5065]
[1761516809229,2.68,199.8,199.66,2.7]
[1761516809633,2.68,199.8,199.68,4.5067]
[1761516809931,2.68,199.8,199.66,2.7]
[1761516810526,2.68,199.8,199.67,4.5068]
[1761516811324,2.68,199.8,199.64,4.5075]
[1761516812924,2.68,199.79,199.64,7.2075]
[1761516813124,2.68,199.79,199.64,2.7]
[1761516814029,2.68,199.79,199.65,4.5074]
[1761516814935,2.68,199.79,199.67,4.5069]
[1761516818026,2.68,199.79,199.68,2.7]
[1761516818229,75.4,199.86,199.68,2.7]
[1761516818428,2.68,199.85,199.68,2.7]
[1761516819636,2.73,199.81,199.68,2.7]
[1761516820532,2.73,199.81,199.65,3.42750503]
[1761516820725,2.73,199.81,199.65,6.05750503]
[1761516821138,2.73,199.81,199.67,4.507]
[1761516821541,2.73,199.81,199.68,2.63]
[1761516822032,2.73,199.81,199.71,2.63]
[1761516822429,2.73,199.85,199.72,2.63]
[1761516823340,2.73,199.85,199.65,3.42750503]
[1761516823341,2.73,199.85,199.73,7.1357]
[1761516824031,2.73,199.85,199.73,2.63]
[1761516824231,2.73,199.82,199.69,2.63]
[1761516825240,2.73,199.82,199.71,7.1361]
[1761516825848,2.73,199.82,199.69,4.5066]
[1761516826036,2.73,199.82,199.67,2.63]
[1761516826442,2.73,199.82,199.71,7.1359]
[1761516826742,2.73,199.82,199.72,2.63]
[1761516827042,2.73,199.82,199.74,7.1354]
[1761516828446,2.73,199.82,199.74,2.63]
[1761516828673,2.73,199.82,199.69,2.63]
[1761516829951,2.73,199.82,199.69,7.1367]
[1761516834640,2.73,199.82,199.7,7.1363]
[1761516837545,2.73,199.82,199.67,4.507]
[1761516837734,2.73,199.82,199.64,2.63]
[1761516837939,2.73,199.82,199.65,2.63]
[1761516838139,2.73,199.8,199.65,2.63]
[1761516838948,2.73,199.8,199.7,4.5064]
[1761516839842,2.73,199.8,199.71,2.63]
[1761516840434,8.90083872,199.85,199.74,2.63]
[1761516840645,2.73,199.85,199.74,2.63]
[1761516841044,2.73,199.85,199.7,2.63]
[1761516841244,2.73,199.82,199.7,2.63]
[1761516841650,2.73,199.82,199.71,4.5062]
[1761516841950,2.73,199.82,199.71,7.1362]
[1761516842144,2.73,199.82,199.72,2.63]
[1761516842345,2.73,199.82,199.74,2.63]
[1761516842544,2.73,199.85,199.74,2.63]
[1761516843544,9.59834375,199.87,199.75,2.85]
[1761516843748,6.17083872,199.88,199.75,2.85]
[1761516843948,6.17083872,199.88,199.71,3.42750503]
[1761516843949,5.56218,199.89,199.79,2.85]
[1761516844337,8.16218,199.89,199.79,2.85]
[1761516844949,8.16218,199.89,199.8,4.5042]
[1761516845150,2.6,199.88,199.79,2.85]
[1761516845846,2.6,199.87,199.75,2.85]
[1761516846050,2.6,199.86,199.75,2.85]
[1761516846252,8.77083872,199.86,199.73,4.5056]
[1761516846450,2.6,199.82,199.68,2.85]
[1761516846751,2.6,199.81,199.68,2.85]
[1761516846947,2.6,199.81,199.71,7.356]
[1761516847153,2.6,199.81,199.72,2.85]
[1761516848454,2.6,199.81,199.7,4.5062]
[1761516849045,3.42750503,199.81,199.69,2.75]
[1761516849246,2.63,199.8,199.69,2.75]
[1761516849558,2.63,199.79,199.69,7.2567]
[1761516850648,8.80083872,199.77,199.66,7.2572]
[1761516850845,2.63,199.75,199.66,7.2572]
[1761516851453,2.63,199.75,199.66,2.75]
[1761516852453,2.63,199.75,199.66,7.2573]
[1761516853655,2.63,199.75,199.59,7.96850188]
[1761516853656,2.63,199.75,199.63,7.2579]
[1761516853855,2.63,199.75,199.64,2.75]
[1761516854156,6.17083872,199.78,199.66,2.75]
[1761516854358,77.17083872,199.78,199.66,2.75]
[1761516854562,73.63,199.78,199.66,2.75]
[1761516854954,2.63,199.78,199.69,7.2567]
[1761516855258,6.17083872,199.82,199.7,2.75]
[1761516855459,8.80083872,199.82,199.7,2.75]
[1761516855653,8.80083872,199.82,199.72,2.75]
[1761516855862,2.63,199.82,199.72,2.75]
[1761516856056,3.42750503,199.8,199.65,2.75]
[1761516856260,3.42750503,199.8,199.7,2.75]
[1761516856261,2.63,199.79,199.7,2.75]
[1761516856860,2.63,199.79,199.71,7.2562]
[1761516857354,2.63,199.83,199.72,2.75]
[1761516857559,2.63,199.83,199.74,2.75]
[1761516858157,2.63,199.82,199.7,4.5063]
[1761516858456,2.63,199.82,199.71,2.75]
[1761516858855,2.63,199.79,199.64,2.75]
[1761516859361,2.63,199.79,199.68,4.5067]
[1761516859654,2.63,199.78,199.68,4.5067]
[1761516859851,2.63,199.78,199.68,7.2567]
[1761516861552,2.63,199.78,199.68,2.75]
[1761516861752,2.63,199.77,199.68,2.75]
[1761516866161,2.63,199.77,199.67,4.507]
[1761516866761,2.63,199.77,199.67,7.257]
[1761516867161,6.17083872,199.77,199.67,7.257]
[1761516867363,2.63,199.76,199.67,7.257]
[1761516871359,2.63,199.76,199.65,4.5076]
[1761516871559,2.63,199.76,199.64,2.75]
[1761516871560,6.17083872,199.76,199.64,2.75]
[1761516871760,2.63,199.75,199.64,2.75]
[1761516872262,2.63,199.75,199.57,2.75]
[1761516872462,2.63,199.74,199.57,2.75]
[1761516873466,2.63,199.73,199.57,2.75]
[1761516873866,2.63,199.73,199.63,4.508]
[1761516876267,2.63,199.73,199.61,2.75]
[1761516877467,2.63,199.73,199.61,7.2583]
[1761516878378,2.63,199.73,199.62,2.75]
[1761516878574,2.63,199.71,199.62,2.75]
[1761516879373,2.63,199.71,199.61,7.3283]
[1761516880569,2.63,199.71,199.61,2.82]
[1761516880766,67.14,199.72,199.52,2.82]
[1761516880767,2.68,199.67,199.52,2.82]
[1761516881469,8.48745131,199.72,199.61,2.82]
[1761516881675,73.42,199.69,199.61,2.82]
[1761516881974,2.68,199.71,199.61,2.82]
[1761516882274,2.68,199.7,199.61,2.82]
[1761516882865,76.06,199.7,199.61,2.82]
[1761516883260,76.06,199.7,199.53,2.82]
[1761516883261,2.68,199.68,199.53,2.82]
[1761516883973,2.68,199.68,199.56,2.82]
[1761516885173,73.36,199.67,199.56,2.82]
[1761516885367,2.68,199.67,199.56,2.82]
[1761516885675,75.98,199.67,199.56,2.82]
[1761516885876,75.98,199.67,199.48,4.56377624]
[1761516885877,2.68,199.67,199.49,8.62745131]
[1761516886069,2.68,199.71,199.53,2.82]
[1761516886272,2.68,199.75,199.55,2.82]
[1761516886488,2.68,199.79,199.67,2.82]
[1761516886778,2.68,199.78,199.67,2.82]
[1761516887572,2.68,199.77,199.67,2.82]
[1761516888778,2.68,199.77,199.68,2.82]
[1761516890568,6.17083872,199.81,199.68,2.82]
[1761516890872,2.68,199.82,199.68,2.82]
[1761516891878,2.68,199.82,199.72,2.82]
[1761516892971,2.68,199.86,199.72,2.82]
[1761516893972,2.68,199.86,199.73,7.3258]
[1761516894379,2.68,199.86,199.74,2.82]
[1761516895976,2.68,199.85,199.74,2.82]
[1761516896369,2.68,199.85,199.75,2.82]
[1761516898080,5.56218,199.89,199.77,2.82]
[1761516898279,78.46218,199.89,199.77,2.82]
[1761516898474,81.14218,199.89,199.77,2.82]
[1761516898776,2.68,199.88,199.78,4.5047]
[1761516898970,2.68,199.88,199.78,7.3247]
[1761516899380,2.68,199.88,199.78,2.82]
[1761516901078,5.56218,199.89,199.78,2.82]
[1761516901275,5.56218,199.89,199.8,2.82]
[1761516901583,2.68,199.88,199.8,2.82]
[1761516901777,2.68,199.88,199.76,7.325]
[1761516901978,2.68,199.88,199.76,2.82]
[1761516902275,2.68,199.88,199.79,2.82]
[1761516902481,2.68,199.88,199.8,4.3562106]
[1761516902681,2.68,199.88,199.81,7.17508501]
[1761516902878,5.56218,199.89,199.82,4.35449234]
[1761516903078,5.56218,199.89,199.81,2.82]
[1761516903079,78.30218,199.89,199.81,2.82]
[1761516903281,8.85083872,199.99,199.83,2.82]
[1761516903482,2.66,200.03,199.89,4.5022]
[1761516903777,2.66,200.03,199.9,4.34684073]
[1761516903778,2.66,200.01,199.9,4.34684073]
[1761516903995,2.66,200.01,199.87,2.62]
[1761516904376,2.66,200.01,199.89,2.62]
[1761516905086,2.66,200.05,199.91,2.62]
[1761516905380,2.66,200.05,199.94,2.62]
[1761516906074,42.28,200.06,199.94,2.62]
[1761516906874,2.66,200.05,199.96,2.62]
[1761516907078,2.66,200.05,199.86,2.62]
[1761516907281,2.66,200.04,199.88,2.62]
[1761516907575,2.66,199.98,199.77,2.62]
[1761516907782,2.66,199.98,199.68,5.52092735]
[1761516907783,2.66,199.98,199.79,2.62]
[1761516908079,2.66,199.98,199.81,7.124]
[1761516908280,2.66,199.95,199.81,2.62]
[1761516908486,2.66,199.94,199.81,2.62]
[1761516909886,2.66,199.94,199.72,2.71]
[1761516910074,2.66,199.94,199.76,7.2151]
[1761516910281,2.66,199.94,199.77,4.32026596]
[1761516910476,2.65,199.9,199.76,2.71]
[1761516910680,2.65,199.9,199.73,2.71]
[1761516910893,2.65,199.9,199.72,4.5059]
[1761516910894,2.65,199.9,199.75,2.71]
[1761516911478,2.65,199.9,199.77,2.71]
[1761516912190,2.65,199.88,199.73,2.71]
[1761516912387,2.65,199.88,199.74,7.03101014]
[1761516912581,2.65,199.88,199.76,2.71]
[1761516913688,2.65,199.85,199.69,2.71]
[1761516913892,2.65,199.85,199.71,2.71]
[1761516914787,2.65,199.85,199.59,2.71]
[1761516914983,2.65,199.85,199.64,4.5077]
[1761516915189,2.65,199.85,199.66,2.71]
[1761516915987,28.74745131,199.86,199.66,2.71]
[1761516915988,2.65,199.8,199.66,2.71]
[1761516916784,2.65,199.8,199.67,4.32509647]
[1761516916985,2.65,199.8,199.68,2.71]
[1761516917188,2.65,199.85,199.68,2.71]
[1761516917380,2.65,199.85,199.7,2.71]
[1761516918087,13.38,199.9,199.72,2.71]
[1761516918294,2.65,199.89,199.73,2.71]
[1761516918485,2.65,199.89,199.74,2.71]
[1761516918990,2.65,199.89,199.76,2.71]
[1761516919489,72.26,199.93,199.78,2.71]
[1761516919690,8.45745131,199.94,199.78,2.71]
[1761516919881,2.65,199.93,199.78,2.71]
[1761516920083,2.65,199.93,199.8,2.71]
[1761516920394,6.17083872,200.02,199.82,2.71]
[1761516920395,2.65,200.02,199.82,2.71]
[1761516920584,2.65,200.02,199.84,2.71]
[1761516920784,2.65,200.02,199.87,2.71]
[1761516920991,2.65,200.02,199.75,70.0808]
[1761516920992,2.65,200.02,199.89,2.71]
[1761516921489,2.65,200.02,199.9,2.71]
[1761516921689,21.38,200.04,199.9,2.71]
[1761516922084,24.03,200.04,199.9,2.71]
[1761516922286,24.03,200.04,199.92,2.71]
[1761516922686,2.65,200.03,199.92,2.71]
[1761516923189,2.65,200.02,199.88,2.71]
[1761516923402,2.65,200.02,199.89,2.71]
[1761516924391,2.65,199.98,199.89,2.71]
[1761516925092,2.65,200.02,199.89,2.71]
[1761516926589,3.42398023,200.05,199.91,2.71]
[1761516926787,7.96,200.09,199.93,2.71]
[1761516926788,11.38398023,200.09,199.93,2.71]
[1761516926991,11.38398023,200.09,199.95,2.71]
[1761516927584,11.38398023,200.09,199.81,74.5573949]
[1761516927585,7.96,200.09,199.97,2.71]
[1761516928488,3.42398023,200.12,199.99,2.71]
[1761516928727,2.65,200.11,199.99,2.71]
[1761516929189,3.42398023,200.12,199.86,4.4941949]
[1761516929190,2.65,200.07,199.93,2.71]
[1761516929490,2.65,200.03,199.85,2.71]
[1761516929696,2.65,200.03,199.87,2.71]
[1761516929892,2.65,200.03,199.89,2.71]
[1761516930095,2.65,200.03,199.9,7.02314116]
[1761516930291,2.65,200.03,199.91,4.3159081]
[1761516930490,2.65,200.03,199.92,4.3159081]
[1761516930684,2.65,200.03,199.91,2.71]
[1761516934004,6.07398023,200.0,199.85,2.71]
[1761516934298,6.07398023,200.05,199.91,2.71]
[1761516934499,3.42398023,200.05,199.91,2.71]
[1761516935098,6.07398023,200.05,199.91,2.71]
[1761516935495,2.65,200.04,199.91,2.71]
[1761516936396,3.42398023,200.05,199.91,2.71]
[1761516936595,6.34,200.07,199.91,2.71]
[1761516936795,2.65,200.06,199.91,2.71]
[1761516938097,3.42398023,200.06,199.93,2.71]
[1761516938289,6.07398023,200.06,199.93,2.71]
[1761516938800,2.64,200.05,199.93,2.71]
[1761516939901,2.64,200.05,199.9,2.86]
[1761516940704,2.64,200.05,199.91,7.3617]
[1761516940892,2.64,200.05,199.92,2.86]
[1761516941617,6.06398023,199.98,199.86,2.86]
[1761516941898,3.42398023,200.03,199.86,2.86]
[1761516942121,2.64,200.02,199.86,2.86]
[1761516942297,2.64,200.02,199.87,2.86]
[1761516942700,2.64,200.02,199.88,4.5024]
[1761516942899,2.64,200.02,199.89,2.86]
[1761516944001,15.03,200.02,199.81,2.86]
[1761516944298,2.64,200.01,199.88,4.5024]
[1761516944502,2.64,200.01,199.89,2.86]